bitfinex-derivatives/quotes_SOLF0:USTF0_20251119
["timestamp","ask_amount","ask_price","bid_price","bid_amount"]
[1763547750208,9.738,139.48,139.46,0.04526847]
[1763547750703,3.28,139.48,139.46,3.30526847]
[1763547753611,3.28,139.48,139.46,0.04526847]
[1763547753907,13.90715607,139.47,139.4,3.26]
[1763547754105,3.28,139.43,139.4,3.26]
[1763547755299,0.04542612,139.43,139.4,3.30905258]
[1763547756408,9.78602612,139.43,139.4,3.30905258]
[1763547756602,3.28,139.42,139.4,3.30905258]
[1763547757112,11.67441867,139.42,139.4,0.04905258]
[1763547757317,3.28,139.41,139.4,0.04905258]
[1763547760108,18.32542612,139.43,139.4,3.23905258]
[1763547760519,15.06542612,139.43,139.4,3.23905258]
[1763547762311,0.04542612,139.43,139.41,3.19]
[1763547763309,9.96621535,139.49,139.42,3.19]
[1763547763509,3.26,139.49,139.42,3.19]
[1763547763715,9.7173,139.5,139.45,3.19]
[1763547764315,0.05233633,139.49,139.47,3.19]
[1763547766904,0.05233633,139.49,139.47,9.6482]
[1763547767105,0.05233633,139.49,139.48,3.19]
[1763547776725,6.70621535,139.56,139.5,3.19]
[1763547776932,3.26,139.56,139.5,3.19]
[1763547777417,9.7142,139.56,139.52,3.19]
[1763547777620,3.26,139.55,139.52,3.19]
[1763547777915,3.26,139.55,139.52,3.23587596]
[1763547777916,3.30773348,139.55,139.52,3.23587596]
[1763547780931,9.76233348,139.55,139.52,3.23587596]
[1763547781327,3.30773348,139.55,139.52,3.23587596]
[1763547782735,9.76233348,139.55,139.52,3.23587596]
[1763547783327,3.26,139.54,139.52,3.23587596]
[1763547783534,3.26,139.53,139.52,0.04587596]
[1763547784333,9.7155,139.53,139.52,0.04587596]
[1763547785025,3.26,139.53,139.52,0.04587596]
[1763547785635,9.7155,139.53,139.52,0.04587596]
[1763547789637,3.00773348,139.55,139.52,3.27587596]
[1763547791026,3.00773348,139.55,139.52,0.04587596]
[1763547791835,9.4155,139.53,139.52,0.04587596]
[1763547794437,24.4155,139.53,139.52,0.04587596]
[1763547799141,21.4555,139.53,139.52,0.04587596]
[1763547799342,2.96,139.53,139.52,0.04587596]
[1763547800844,9.4155,139.53,139.52,0.04587596]
[1763547802744,9.46273348,139.55,139.52,3.27587596]
[1763547802950,24.46273348,139.55,139.52,3.27587596]
[1763547803341,3.0,139.54,139.52,3.27587596]
[1763547803548,9.4551,139.54,139.52,3.27587596]
[1763547803743,3.0,139.53,139.52,0.04587596]
[1763547804143,9.4555,139.53,139.52,0.04587596]
[1763547811156,16.16171535,139.53,139.52,0.04587596]
[1763547819561,6.4569,139.5,139.49,13.22]
[1763547819762,24.4569,139.5,139.49,13.22]
[1763547820864,31.15869922,139.5,139.49,13.22]
[1763547822070,34.17696145,139.5,139.49,13.22]
[1763547822568,9.4574,139.49,139.48,0.04702685]
[1763547822865,3.0,139.48,139.41,9.5308]
[1763547823069,3.0,139.46,139.42,3.07]
[1763547823672,3.0525326,139.45,139.43,0.0548342]
[1763547823867,0.0525326,139.45,139.43,3.1248342]
[1763547826569,3.0525326,139.45,139.43,0.0548342]
[1763547827872,9.5118326,139.45,139.43,0.0548342]
[1763547828074,3.0,139.44,139.43,0.0548342]
[1763547830372,3.0525326,139.45,139.43,0.0548342]
[1763547831873,3.0525326,139.45,139.43,3.1248342]
[1763547832080,0.0525326,139.45,139.43,3.1248342]
[1763547833678,0.0525326,139.45,139.44,6.4597]
[1763547833984,0.0525326,139.45,139.44,9.5297]
[1763547835379,0.0525326,139.45,139.44,3.07]
[1763547835674,0.0525326,139.45,139.43,3.1248342]
[1763547836679,0.0525326,139.45,139.44,9.5297]
[1763547837882,0.0525326,139.45,139.44,3.07]
[1763547839976,0.0525326,139.45,139.44,9.5297]
[1763547842981,3.0,139.51,139.47,3.07]
[1763547843382,3.0,139.51,139.48,3.07]
[1763547843584,21.71632008,139.54,139.48,3.07]
[1763547843585,3.0,139.54,139.48,3.07]
[1763547843889,0.05035,139.52,139.5,3.11563837]
[1763547848588,0.05035,139.52,139.5,9.57243837]
[1763547848796,5.0735461,139.57,139.51,3.15]
[1763547849683,11.5272461,139.57,139.51,9.6062]
[1763547849884,11.5272461,139.57,139.52,3.15]
[1763547849885,0.04821597,139.55,139.52,3.15]
[1763547850087,0.04821597,139.55,139.52,3.20107201]
[1763547850592,3.18821597,139.55,139.52,3.20107201]
[1763547851594,0.04821597,139.55,139.52,3.20107201]
[1763547852995,0.04821597,139.55,139.52,9.65697201]
[1763547853495,0.04821597,139.55,139.53,3.15]
[1763547854084,3.18821597,139.55,139.52,0.05107201]
[1763547854289,3.18821597,139.55,139.52,3.20107201]
[1763547855495,3.14,139.54,139.52,3.20107201]
[1763547855899,3.18821597,139.55,139.52,3.20107201]
[1763547857202,3.14,139.54,139.52,3.20107201]
[1763547857697,3.14,139.54,139.52,0.05107201]
[1763547860604,3.18821597,139.55,139.52,3.20107201]
[1763547862495,9.64281597,139.55,139.52,0.05107201]
[1763547862806,3.14,139.54,139.52,3.20107201]
[1763547863604,3.14,139.54,139.52,0.05107201]
[1763547874414,3.14,139.54,139.52,3.02107201]
[1763547874617,0.04821597,139.55,139.52,3.02107201]
[1763547875704,0.04821597,139.55,139.52,9.47707201]
[1763547875903,0.04821597,139.55,139.53,2.97]
[1763547876311,0.04821597,139.55,139.54,9.4251]
[1763547877513,0.04821597,139.55,139.54,2.97]
[1763547879619,0.04821597,139.55,139.54,9.4251]
[1763547879823,0.04821597,139.55,139.54,2.97]
[1763547889629,0.04821597,139.55,139.54,9.4251]
[1763547892438,3.29821597,139.55,139.52,3.25107201]
[1763547892935,9.7055,139.53,139.52,0.05107201]
[1763547893129,3.25,139.53,139.52,0.05107201]
[1763547895728,6.74453605,139.55,139.52,3.25107201]
[1763547896038,0.04821597,139.55,139.52,3.25107201]
[1763547898630,0.04821597,139.55,139.52,9.70697201]
[1763547898834,0.04821597,139.55,139.53,3.2]
[1763547903642,0.04821597,139.55,139.54,3.2]
[1763547903937,3.29821597,139.55,139.53,7.52]
[1763547905243,3.29821597,139.55,139.53,10.72]
[1763547905439,0.04821597,139.55,139.54,3.2]
[1763547906345,0.04821597,139.55,139.53,10.72]
[1763547906541,3.29821597,139.55,139.53,10.72]
[1763547908846,3.29821597,139.55,139.53,7.52]
[1763547910445,3.06,139.54,139.53,7.52]
[1763547920152,3.06,139.53,139.46,6.68300026]
[1763547920352,3.06,139.5,139.47,2.97]
[1763547920654,15.0,139.51,139.47,2.97]
[1763547920852,18.06,139.51,139.47,2.97]
[1763547921249,0.04852586,139.5,139.48,0.04922173]
[1763547921446,3.10852586,139.5,139.48,0.04922173]
[1763547923052,3.06,139.49,139.48,0.04922173]
[1763547927448,3.06,139.49,139.46,2.86697421]
[1763547928357,3.06,139.49,139.46,2.91839437]
[1763547928557,9.5174,139.49,139.46,2.91839437]
[1763547929050,3.19,139.48,139.46,2.91839437]
[1763547929857,3.19,139.48,139.46,0.05142016]
[1763547930159,3.19,139.47,139.46,0.05142016]
[1763547931162,0.04852586,139.5,139.46,3.24142016]
[1763547931163,3.19,139.49,139.46,3.24142016]
[1763547931351,18.19,139.49,139.46,3.24142016]
[1763547932358,3.19,139.48,139.46,3.24142016]
[1763547943265,9.648,139.48,139.46,3.24142016]
[1763547944668,3.14,139.47,139.46,0.05142016]
[1763547955184,18.14,139.49,139.46,3.04142016]
[1763547955785,9.5978,139.48,139.46,3.04142016]
[1763547956088,3.14,139.48,139.46,3.04142016]
[1763547956786,3.14,139.47,139.46,0.05142016]
[1763547957590,9.5983,139.47,139.46,0.05142016]
[1763547958595,3.14,139.47,139.46,0.05142016]
[1763547960683,24.5974,139.49,139.46,3.04142016]
[1763547961287,3.14,139.48,139.46,3.04142016]
[1763547961785,9.5979,139.48,139.46,0.05142016]
[1763547962092,3.14,139.47,139.46,0.05142016]
[1763547964387,9.5983,139.47,139.46,0.05142016]
[1763547966496,3.14,139.47,139.46,0.05142016]
[1763547968888,6.69632008,139.48,139.46,3.26142016]
[1763547969095,9.86484594,139.5,139.46,3.26142016]
[1763547969289,15.0,139.49,139.46,3.26142016]
[1763547969492,18.12,139.49,139.46,3.26142016]
[1763547969887,0.04852586,139.5,139.47,3.21]
[1763547971191,0.04852586,139.5,139.48,3.21]
[1763547972993,0.04852586,139.5,139.48,9.6678]
[1763547973199,6.69632008,139.55,139.5,3.21]
[1763547973398,9.81632008,139.57,139.5,3.21]
[1763547973702,3.12,139.56,139.53,3.21]
[1763547974195,3.16528398,139.56,139.53,3.26329731]
[1763547974596,3.16528398,139.56,139.53,9.71869731]
[1763547974898,3.16528398,139.56,139.54,3.21]
[1763547975095,0.04528398,139.56,139.54,3.21]
[1763547975394,0.04528398,139.56,139.55,3.21]
[1763547980803,3.16528398,139.56,139.54,3.21]
[1763547982312,0.04528398,139.56,139.54,3.21]
[1763547982905,3.16528398,139.56,139.53,0.05329731]
[1763547983102,3.16528398,139.56,139.53,3.26329731]
[1763547984707,3.16528398,139.56,139.53,9.71869731]
[1763547985010,3.16528398,139.56,139.54,3.05]
[1763547986006,3.16528398,139.56,139.53,6.50869731]
[1763547986007,3.16528398,139.56,139.53,9.55869731]
[1763547990118,0.04528398,139.56,139.55,3.05]
[1763547990717,0.04528398,139.56,139.54,6.455]
[1763547991018,0.04528398,139.56,139.54,3.05]
[1763547991218,3.22528398,139.56,139.54,3.05]
[1763547992015,3.22528398,139.56,139.53,0.05329731]
[1763547992918,9.67958398,139.56,139.53,0.05329731]
[1763547993219,9.67958398,139.56,139.53,3.10329731]
[1763547993720,3.18,139.55,139.53,3.10329731]
[1763547996317,3.22528398,139.56,139.53,0.05329731]
[1763547996518,3.22528398,139.56,139.53,3.10329731]
[1763547997913,5.15808919,139.56,139.53,0.05329731]
[1763547998110,3.11,139.55,139.53,0.05329731]
[1763547998317,9.5651,139.54,139.53,0.05329731]
[1763548002318,3.11,139.54,139.53,0.05329731]
[1763548007821,16.97808919,139.56,139.53,0.05329731]
[1763548008020,3.11,139.55,139.53,0.05329731]
[1763548008221,3.11,139.55,139.53,3.24329731]
[1763548009220,3.11,139.55,139.53,0.05329731]
[1763548012532,9.5648,139.55,139.53,0.05329731]
[1763548012721,3.11,139.54,139.53,0.05329731]
[1763548014826,3.11,139.55,139.53,3.24329731]
[1763548015027,3.11,139.55,139.53,0.05329731]
[1763548015227,3.11,139.55,139.53,3.24329731]
[1763548015423,0.04528398,139.56,139.53,3.24329731]
[1763548015628,0.04528398,139.56,139.55,6.4546]
[1763548015829,0.04528398,139.56,139.55,9.6446]
[1763548016029,3.11,139.61,139.56,3.19]
[1763548016338,18.11,139.63,139.6,3.19]
[1763548016641,3.11,139.62,139.6,3.19]
[1763548017027,3.15537235,139.62,139.6,3.23545706]
[1763548017429,0.04537235,139.62,139.6,3.23545706]
[1763548020242,0.04537235,139.62,139.6,9.68765706]
[1763548020541,0.04537235,139.62,139.61,3.19]
[1763548022443,3.15537235,139.62,139.6,0.04545706]
[1763548026839,9.60677235,139.62,139.6,0.04545706]
[1763548027044,3.11,139.61,139.6,0.04545706]
[1763548030649,3.26537235,139.62,139.6,3.21545706]
[1763548031152,3.26537235,139.62,139.6,0.04545706]
[1763548040954,3.22,139.58,139.55,3.17]
[1763548041554,3.22,139.63,139.59,3.17]
[1763548041851,3.22,139.63,139.54,3.17]
[1763548042047,3.22,139.63,139.53,3.01722025]
[1763548042048,3.22,139.61,139.56,3.17]
[1763548042352,3.22,139.61,139.57,3.21621182]
[1763548042554,3.01722025,139.64,139.57,3.21621182]
[1763548042555,3.26982639,139.6,139.57,3.21621182]
[1763548044854,3.26982639,139.6,139.57,9.66991182]
[1763548052058,3.26982639,139.6,139.57,3.21621182]
[1763548052664,0.04982639,139.6,139.59,3.23]
[1763548059162,8.93149167,139.67,139.66,2.97]
[1763548059364,3.21,139.67,139.63,2.97]
[1763548059564,1.24641834,139.72,139.66,2.97]
[1763548059757,24.6555,139.75,139.69,2.97]
[1763548059953,3.21,139.74,139.69,2.97]
[1763548060167,3.21,139.72,139.7,0.05387613]
[1763548060766,9.6568,139.72,139.7,0.05387613]
[1763548060968,3.21,139.71,139.7,0.05387613]
[1763548062171,18.21,139.71,139.7,0.05387613]
[1763548063874,3.21,139.71,139.7,0.05387613]
[1763548064075,18.21,139.71,139.7,0.05387613]
[1763548066970,19.65,139.71,139.7,0.05387613]
[1763548067164,18.21,139.71,139.7,0.05387613]
[1763548073580,3.26342252,139.73,139.7,3.02387613]
[1763548073772,15.0,139.72,139.7,3.02387613]
[1763548073975,3.21,139.71,139.7,0.05387613]
[1763548078983,18.21,139.71,139.7,0.05387613]
[1763548079985,18.19,139.71,139.7,0.05387613]
[1763548083184,3.21,139.71,139.7,0.05387613]
[1763548083381,18.19,139.71,139.7,0.05387613]
[1763548084990,18.19,139.71,139.7,0.00552335]
[1763548085280,20.11581425,139.71,139.7,0.00552335]
[1763548086586,21.55581425,139.71,139.7,0.00552335]
[1763548088589,28.00301425,139.71,139.7,0.00552335]
[1763548090290,28.00301425,139.71,139.63,1.92581425]
[1763548090291,3.12,139.65,139.61,3.2]
[1763548090496,14.98,139.64,139.61,3.2]
[1763548090679,18.1,139.64,139.61,3.2]
[1763548091286,18.14592124,139.64,139.61,3.24797795]
[1763548091484,18.14592124,139.64,139.62,5.12581425]
[1763548091687,18.14592124,139.64,139.62,1.92581425]
[1763548091985,3.12,139.63,139.61,0.04797795]
[1763548095898,18.1,139.62,139.61,0.04797795]
[1763548096695,3.12,139.63,139.61,3.24797795]
[1763548096895,14.98,139.62,139.61,3.24797795]
[1763548098992,14.98,139.62,139.61,0.04797795]
[1763548099398,18.1,139.62,139.61,0.04797795]
[1763548099996,3.12,139.62,139.61,0.04797795]
[1763548100200,18.1,139.62,139.61,0.04797795]
[1763548102403,3.12,139.63,139.61,0.04797795]
[1763548102603,0.04592124,139.64,139.63,3.2]
[1763548102904,3.12,139.63,139.62,1.92581425]
[1763548103109,24.59632124,139.64,139.62,1.92581425]
[1763548103704,18.14592124,139.64,139.62,4.90581425]
[1763548105707,14.98,139.63,139.62,4.90581425]
[1763548106100,0.04592124,139.64,139.62,4.90581425]
[1763548106302,0.04592124,139.64,139.63,2.98]
[1763548106508,15.02592124,139.64,139.63,2.98]
[1763548110307,0.04592124,139.64,139.63,9.4309]
[1763548110511,15.02592124,139.64,139.63,9.4309]
[1763548110807,15.02592124,139.64,139.63,2.98]
[1763548112510,15.02592124,139.64,139.63,9.4309]
[1763548112904,0.04592124,139.64,139.63,9.4309]
[1763548123308,0.04592124,139.64,139.63,11.35671425]
[1763548129808,14.98,139.69,139.67,3.02]
[1763548130813,15.03476606,139.69,139.67,3.0737341]
[1763548131008,0.05476606,139.69,139.68,3.02]
[1763548131515,0.05476606,139.69,139.67,3.0737341]
[1763548131723,3.01476606,139.69,139.67,3.0737341]
[1763548134617,0.05476606,139.69,139.67,3.0737341]
[1763548135406,0.05476606,139.69,139.67,9.5227341]
[1763548135606,0.05476606,139.69,139.68,3.02]
[1763548139122,0.05476606,139.69,139.68,9.4686]
[1763548139314,17.94,139.74,139.69,3.02]
[1763548139622,2.96,139.73,139.69,3.02]
[1763548140121,14.98,139.74,139.69,3.02]
[1763548140316,0.05234578,139.73,139.71,3.02]
[1763548140517,3.01234578,139.73,139.71,3.02]
[1763548146625,0.05234578,139.73,139.71,3.02]
[1763548147829,3.22234578,139.73,139.71,3.02]
[1763548149526,0.05234578,139.73,139.71,3.02]
[1763548150028,0.05234578,139.73,139.72,3.19]
[1763548151023,24.5935,139.78,139.72,6.4458]
[1763548151228,24.5935,139.78,139.73,3.19]
[1763548151826,24.5935,139.78,139.74,3.19]
[1763548152021,0.0483015,139.77,139.76,3.19]
[1763548154338,0.0483015,139.77,139.75,0.04962025]
[1763548154339,3.2183015,139.77,139.75,3.23962025]
[1763548154836,0.0483015,139.77,139.75,3.23962025]
[1763548157440,3.2183015,139.77,139.75,0.04962025]
[1763548157636,3.2183015,139.77,139.75,3.23962025]
[1763548162347,3.2183015,139.77,139.75,0.04962025]
[1763548163148,3.23,139.75,139.7,3.19]
[1763548164149,0.05093314,139.74,139.72,3.05]
[1763548165644,3.28093314,139.74,139.72,3.05]
[1763548170044,0.05093314,139.74,139.72,3.05]
[1763548170549,3.28093314,139.74,139.72,3.05]
[1763548170754,9.72623314,139.74,139.72,3.05]
[1763548170949,3.23,139.73,139.71,0.049904]
[1763548172347,3.23,139.72,139.71,0.049904]
[1763548180866,9.6762,139.72,139.71,0.049904]
[1763548182766,3.09,139.69,139.66,3.21]
[1763548183362,3.09,139.68,139.62,3.00982173]
[1763548183563,3.09,139.68,139.63,3.21]
[1763548183868,3.14444611,139.67,139.65,3.21]
[1763548184067,3.1356905,139.67,139.65,3.2613124]
[1763548184863,0.0456905,139.67,139.65,3.2613124]
[1763548190069,0.0456905,139.67,139.66,3.21]
[1763548198479,0.0456905,139.67,139.65,0.0513124]
[1763548198480,3.1356905,139.67,139.65,0.0513124]
[1763548198674,3.1356905,139.67,139.65,3.2613124]
[1763548198866,0.0456905,139.67,139.65,3.2613124]
[1763548199266,6.4941905,139.67,139.65,3.2613124]
[1763548199568,0.0456905,139.67,139.65,3.2613124]
[1763548202878,3.1356905,139.67,139.65,3.2613124]
[1763548203776,0.0456905,139.67,139.65,3.2613124]
[1763548207184,0.0456905,139.67,139.66,3.21]
[1763548208478,3.2756905,139.67,139.65,3.0613124]
[1763548208684,3.2756905,139.67,139.65,0.0513124]
[1763548208872,3.2756905,139.67,139.65,3.0613124]
[1763548212386,0.0456905,139.67,139.65,3.0613124]
[1763548213085,9.6795,139.66,139.65,0.0513124]
[1763548213783,11.1195,139.66,139.65,0.0513124]
[1763548213985,17.79584776,139.66,139.65,0.0513124]
[1763548214379,19.72251093,139.66,139.65,0.0513124]
[1763548215389,13.04616317,139.66,139.65,0.0513124]
[1763548217193,3.23,139.61,139.57,3.01]
[1763548217784,3.23,139.59,139.57,3.01]
[1763548218095,3.23,139.59,139.55,3.01]
[1763548218283,0.05113976,139.58,139.56,3.05987057]
[1763548221895,0.05113976,139.58,139.56,9.51397057]
[1763548222195,0.05113976,139.58,139.57,3.01]
[1763548225803,0.05113976,139.58,139.57,9.4637]
[1763548227606,0.05113976,139.58,139.56,1.97653374]
[1763548227607,0.05113976,139.58,139.56,3.25987057]
[1763548227794,3.21113976,139.58,139.56,3.25987057]
[1763548228697,3.21113976,139.58,139.56,0.04987057]
[1763548229299,9.6137,139.57,139.56,0.04987057]
[1763548231417,24.5937,139.57,139.56,0.04987057]
[1763548234307,14.98,139.57,139.56,0.04987057]
[1763548234511,18.14,139.57,139.56,0.04987057]
[1763548236809,3.16,139.57,139.56,0.04987057]
[1763548237103,18.14,139.57,139.56,0.04987057]
[1763548237811,6.50383976,139.58,139.56,0.04987057]
[1763548238113,24.72383976,139.58,139.56,3.15987057]
[1763548238504,24.72383976,139.58,139.56,0.04987057]
[1763548239312,18.27113976,139.58,139.56,0.04987057]
[1763548239516,0.05113976,139.58,139.56,3.15987057]
[1763548240920,18.22,139.63,139.57,3.11]
[1763548241712,0.05302847,139.61,139.59,3.11]
[1763548241909,3.24,139.65,139.59,3.15920612]
[1763548242207,0.04896778,139.61,139.59,3.15920612]
[1763548243010,0.04896778,139.61,139.6,3.11]
[1763548254918,0.04896778,139.61,139.6,9.5617]
[1763548261226,3.24,139.69,139.63,3.11]
[1763548262123,0.05506634,139.67,139.63,3.11]
[1763548262328,0.05506634,139.67,139.65,3.15520593]
[1763548262527,0.05506634,139.67,139.65,3.15696358]
[1763548262923,3.24,139.66,139.65,0.04696358]
[1763548263321,9.689,139.66,139.65,0.04696358]
[1763548263626,3.24,139.65,139.6,18.09]
[1763548263934,3.24,139.65,139.61,3.11]
[1763548264828,0.05155668,139.64,139.62,3.16058455]
[1763548265226,3.29155668,139.64,139.62,0.05058455]
[1763548266634,9.74145668,139.64,139.62,0.05058455]
[1763548266829,3.24,139.63,139.62,0.05058455]
[1763548268230,4.68,139.63,139.62,0.05058455]
[1763548269235,11.1304,139.63,139.62,0.05058455]
[1763548269536,3.2,139.62,139.55,6.4536]
[1763548269833,3.2,139.6,139.55,9.4536]
[1763548270235,3.2,139.58,139.55,3.0]
[1763548270633,3.25113302,139.58,139.55,3.05072742]
[1763548271525,0.05113302,139.58,139.55,3.05072742]
[1763548271726,3.25113302,139.58,139.55,3.05072742]
[1763548273033,3.25113302,139.58,139.56,3.0]
[1763548276433,3.2,139.57,139.55,3.05072742]
[1763548277839,3.2,139.57,139.55,0.05072742]
[1763548278134,3.2,139.56,139.55,0.05072742]
[1763548278527,3.2,139.57,139.55,3.05072742]
[1763548279034,9.70423302,139.58,139.55,3.05072742]
[1763548279230,3.25113302,139.58,139.55,3.05072742]
[1763548281431,3.25113302,139.58,139.55,9.50482742]
[1763548282430,0.05113302,139.58,139.56,3.0]
[1763548282841,3.25113302,139.58,139.56,3.0]
[1763548283837,3.25113302,139.58,139.55,9.56482742]
[1763548284942,3.25113302,139.58,139.55,3.11072742]
[1763548285843,3.25113302,139.58,139.55,9.56472742]
[1763548287541,3.25113302,139.58,139.56,3.06]
[1763548288736,0.05113302,139.58,139.56,9.5135]
[1763548288940,0.05113302,139.58,139.57,3.06]
[1763548293137,3.18113302,139.58,139.56,3.06]
[1763548293345,3.18113302,139.58,139.55,3.11072742]
[1763548293935,3.13,139.57,139.55,3.11072742]
[1763548294138,3.13,139.57,139.55,0.05072742]
[1763548294647,9.5832,139.57,139.55,0.05072742]
[1763548294848,3.13,139.56,139.55,0.05072742]
[1763548295745,9.5836,139.56,139.55,0.05072742]
[1763548309260,3.13,139.56,139.55,0.05072742]
[1763548309855,3.24113302,139.58,139.55,3.01072742]
[1763548310061,18.17,139.57,139.55,3.01072742]
[1763548310555,18.17,139.57,139.55,0.05072742]
[1763548310861,3.19,139.56,139.55,0.05072742]
[1763548312049,6.20251915,139.56,139.55,0.05072742]
[1763548312251,3.19,139.56,139.55,0.05072742]
[1763548312860,14.98,139.56,139.55,0.05072742]
[1763548313064,18.17,139.56,139.55,0.05072742]
[1763548313356,14.98,139.56,139.55,0.05072742]
[1763548313858,18.17,139.56,139.55,0.05072742]
[1763548315262,3.19,139.56,139.55,0.05072742]
[1763548315566,14.98,139.57,139.55,3.01072742]
[1763548315755,18.17,139.57,139.55,3.01072742]
[1763548316261,14.98,139.57,139.55,3.01072742]
[1763548317057,18.17,139.57,139.55,3.01072742]
[1763548320955,0.05113302,139.58,139.55,3.01072742]
[1763548321150,3.24113302,139.58,139.55,3.01072742]
[1763548322361,3.19,139.57,139.55,0.05072742]
[1763548322568,3.19,139.57,139.55,3.01072742]
[1763548322868,6.50383302,139.58,139.55,3.01072742]
[1763548323057,9.69383302,139.58,139.55,3.01072742]
[1763548323665,3.19,139.57,139.55,3.01072742]
[1763548325874,9.69383302,139.58,139.55,3.01072742]
[1763548326464,3.24113302,139.58,139.55,3.01072742]
[1763548334072,9.69393302,139.58,139.55,3.01072742]
[1763548334870,3.18,139.57,139.55,3.01072742]
[1763548336078,9.6331,139.57,139.55,0.05072742]
[1763548336268,9.6331,139.57,139.55,3.16072742]
[1763548337674,3.18,139.56,139.55,0.05072742]
[1763548340569,3.23113302,139.58,139.55,3.16072742]
[1763548340769,3.18,139.57,139.55,3.16072742]
[1763548341077,3.18,139.57,139.55,0.05072742]
[1763548341475,3.18,139.57,139.55,3.16072742]
[1763548347386,3.19,139.56,139.55,3.16072742]
[1763548349281,9.6431,139.57,139.55,3.16072742]
[1763548350182,3.19,139.56,139.55,3.16072742]
[1763548351180,9.6435,139.56,139.55,0.05072742]
[1763548353383,11.57340282,139.56,139.55,0.05072742]
[1763548353987,11.57340282,139.56,139.55,0.00072742]
[1763548354280,3.19,139.51,139.48,3.13]
[1763548354678,24.6249,139.54,139.49,3.13]
[1763548354884,9.6449,139.54,139.49,3.13]
[1763548355084,3.23531964,139.53,139.51,3.13]
[1763548356188,3.19,139.52,139.5,3.17551439]
[1763548356386,9.69021964,139.53,139.5,3.17551439]
[1763548357292,3.19,139.52,139.5,3.17551439]
[1763548359091,3.08,139.51,139.5,0.04551439]
[1763548361390,9.5358,139.51,139.5,0.04551439]
[1763548362295,24.5158,139.51,139.5,0.04551439]
[1763548364993,18.06,139.51,139.5,0.04551439]
[1763548365901,3.08,139.51,139.5,0.04551439]
[1763548368303,9.5358,139.51,139.5,0.04551439]
[1763548368790,3.08,139.51,139.5,0.04551439]
[1763548371402,3.12531964,139.53,139.5,3.04551439]
[1763548371609,15.02531964,139.53,139.5,3.04551439]
[1763548372200,18.10531964,139.53,139.5,9.50181439]
[1763548373210,18.10531964,139.53,139.5,3.04551439]
[1763548373604,24.56041964,139.53,139.5,3.04551439]
[1763548373805,18.10531964,139.53,139.5,3.04551439]
[1763548374005,3.08,139.52,139.5,3.04551439]
[1763548374912,9.5354,139.52,139.5,3.04551439]
[1763548375113,3.08,139.52,139.5,3.04551439]
[1763548376211,15.02531964,139.53,139.5,3.04551439]
[1763548376510,0.04531964,139.53,139.52,3.0]
[1763548378116,5.00990282,139.6,139.52,3.0]
[1763548378310,3.08,139.58,139.55,3.0]
[1763548378704,18.06,139.59,139.55,3.0]
[1763548378911,18.06,139.6,139.56,3.0]
[1763548379214,3.13219643,139.59,139.57,3.04521741]
[1763548379404,3.13219643,139.59,139.57,0.04521741]
[1763548380607,9.58449643,139.59,139.57,0.04521741]
[1763548380813,3.08,139.58,139.57,0.04521741]
[1763548385418,3.13219643,139.59,139.57,3.04521741]
[1763548385713,3.13219643,139.59,139.57,0.04521741]
[1763548386223,9.58449643,139.59,139.57,0.04521741]
[1763548386419,3.08,139.58,139.57,0.04521741]
[1763548391722,9.5326,139.58,139.57,0.04521741]
[1763548392925,6.4526,139.58,139.57,3.27521741]
[1763548393128,9.6826,139.58,139.57,0.04521741]
[1763548396828,3.23,139.58,139.57,0.04521741]
[1763548401528,21.48449643,139.59,139.57,3.27521741]
[1763548401724,24.71449643,139.59,139.57,3.27521741]
[1763548402030,9.73449643,139.59,139.57,3.27521741]
[1763548402231,0.05219643,139.59,139.58,9.6826]
[1763548402418,0.05219643,139.59,139.58,3.23]
[1763548411035,0.05219643,139.59,139.58,9.6826]
[1763548413939,0.05219643,139.59,139.57,0.04521741]
[1763548413940,2.96,139.66,139.63,3.16]
[1763548414838,2.96,139.66,139.63,9.6102]
[1763548415135,3.01206032,139.66,139.63,0.04954221]
[1763548415841,2.96,139.65,139.63,0.04954221]